[Event "Rapid della Domenica"]
[Site "Chess.com"]
[Date "2020.04.19"]
[Round "5"]
[White "FrancescoZasa"]
[Black "fausto2p"]
[Result "0-1"]
[WhiteElo "644"]
[BlackElo "895"]
[TimeControl "720+3"]
[EndTime "7:59:34 PDT"]
[Termination "fausto2p ha vinto per scaccomatto"]

1. d4 {[%clk 0:12:02.9]} 1... d5 {[%clk 0:12:00.1]} 2. c4 {[%clk 0:12:03.5]}
2... c6 {[%clk 0:11:56.3]} 3. e3 {[%clk 0:12:04.7]} 3... Nf6 {[%clk 0:11:55.3]}
4. Nf3 {[%clk 0:11:59.2]} 4... e6 {[%clk 0:11:54.8]} 5. Nc3 {[%clk 0:11:47.2]}
5... Bb4 {[%clk 0:11:50.9]} 6. c5 {[%clk 0:11:44.6]} 6... Bxc3+ {[%clk
0:11:44.9]} 7. bxc3 {[%clk 0:11:45.5]} 7... Ne4 {[%clk 0:11:44.2]} 8. Qc2 {[%clk
0:11:14.8]} 8... Nd7 {[%clk 0:11:20.6]} 9. c4 {[%clk 0:11:06.4]} 9... b6 {[%clk
0:10:15.2]} 10. cxd5 {[%clk 0:11:00.5]} 10... exd5 {[%clk 0:09:49.9]} 11. cxb6
{[%clk 0:10:47.8]} 11... Bb7 {[%clk 0:09:13.3]} 12. Rb1 {[%clk 0:10:43.5]} 12...
Nxb6 {[%clk 0:09:05.6]} 13. Be2 {[%clk 0:10:37]} 13... O-O {[%clk 0:09:04.4]}
14. O-O {[%clk 0:10:33.9]} 14... Qc7 {[%clk 0:08:27.1]} 15. g3 {[%clk
0:10:14.8]} 15... a5 {[%clk 0:06:53.3]} 16. Bd3 {[%clk 0:10:11.2]} 16... f5
{[%clk 0:06:31.3]} 17. Bxe4 {[%clk 0:09:59.8]} 17... fxe4 {[%clk 0:06:20.4]} 18.
Ng5 {[%clk 0:09:58.3]} 18... Bc8 {[%clk 0:05:25.8]} 19. h4 {[%clk 0:09:55]}
19... h6 {[%clk 0:05:25.1]} 20. Ne6 {[%clk 0:09:44.8]} 20... Bxe6 {[%clk
0:05:24.4]} 21. f4 {[%clk 0:09:34.5]} 21... exf3 {[%clk 0:05:23.5]} 22. Rxf3
{[%clk 0:09:17.9]} 22... Rxf3 {[%clk 0:05:20.7]} 23. Kg2 {[%clk 0:09:08]} 23...
Qxg3+ {[%clk 0:05:12.2]} 24. Kh1 {[%clk 0:08:58]} 24... Rf1# {[%clk 0:05:10]}
0-1

[Event "Rapid della Domenica"]
[Site "Chess.com"]
[Date "2020.04.19"]
[Round "5"]
[White "caramante"]
[Black "Ollarov"]
[Result "0-1"]
[WhiteElo "1570"]
[BlackElo "2047"]
[TimeControl "720+3"]
[EndTime "8:03:52 PDT"]
[Termination "Ollarov ha vinto per scaccomatto"]

1. Nf3 {[%clk 0:11:57.5]} 1... Nf6 {[%clk 0:12:00.7]} 2. d4 {[%clk 0:11:59.1]}
2... d6 {[%clk 0:11:56.8]} 3. g3 {[%clk 0:12:00.9]} 3... g6 {[%clk 0:11:57.3]}
4. Bg2 {[%clk 0:12:02.7]} 4... Bg7 {[%clk 0:11:57.9]} 5. O-O {[%clk 0:12:04.5]}
5... O-O {[%clk 0:11:57.8]} 6. Re1 {[%clk 0:12:04.5]} 6... Nc6 {[%clk
0:11:55.6]} 7. c3 {[%clk 0:12:06.3]} 7... Bf5 {[%clk 0:11:56.2]} 8. Nbd2 {[%clk
0:12:06.1]} 8... Ne4 {[%clk 0:11:12.7]} 9. Nh4 {[%clk 0:12:02.6]} 9... Nxd2
{[%clk 0:11:09]} 10. Nxf5 {[%clk 0:12:02.3]} 10... gxf5 {[%clk 0:10:07.9]} 11.
Bxd2 {[%clk 0:12:00.6]} 11... d5 {[%clk 0:10:03.8]} 12. Qc1 {[%clk 0:11:59]}
12... e6 {[%clk 0:09:59.2]} 13. Bh6 {[%clk 0:11:56.1]} 13... Qf6 {[%clk
0:09:54.7]} 14. Bxg7 {[%clk 0:11:38.6]} 14... Kxg7 {[%clk 0:09:49.2]} 15. Qf4
{[%clk 0:11:37.7]} 15... Rac8 {[%clk 0:09:32.6]} 16. h3 {[%clk 0:11:30.4]} 16...
Ne7 {[%clk 0:09:17.2]} 17. Qd2 {[%clk 0:11:00.6]} 17... c5 {[%clk 0:08:30.4]}
18. e3 {[%clk 0:10:49.6]} 18... Rc6 {[%clk 0:07:55.2]} 19. c4 {[%clk 0:10:43.6]}
19... cxd4 {[%clk 0:07:40.6]} 20. cxd5 {[%clk 0:10:40.3]} 20... dxe3 {[%clk
0:07:36.9]} 21. Rxe3 {[%clk 0:10:36.7]} 21... Rd8 {[%clk 0:07:23]} 22. Rd3
{[%clk 0:10:23.7]} 22... Rcd6 {[%clk 0:07:16.3]} 23. Rd1 {[%clk 0:10:14]} 23...
e5 {[%clk 0:07:00.1]} 24. Qb4 {[%clk 0:10:00]} 24... e4 {[%clk 0:06:20.6]} 25.
R3d2 {[%clk 0:09:49.2]} 25... b6 {[%clk 0:06:20]} 26. Qa4 {[%clk 0:09:26.7]}
26... Rxd5 {[%clk 0:05:47.3]} 27. Rxd5 {[%clk 0:09:24.8]} 27... Rxd5 {[%clk
0:05:44.6]} 28. Rxd5 {[%clk 0:09:25.2]} 28... Nxd5 {[%clk 0:05:45.8]} 29. Qxa7
{[%clk 0:09:25.8]} 29... Qxb2 {[%clk 0:05:41.9]} 30. Qd7 {[%clk 0:09:22.5]}
30... Qe5 {[%clk 0:05:37.2]} 31. a4 {[%clk 0:09:16]} 31... Nc3 {[%clk
0:04:46.7]} 32. Bf1 {[%clk 0:09:06.4]} 32... e3 {[%clk 0:04:12.4]} 33. Bc4
{[%clk 0:08:49]} 33... exf2+ {[%clk 0:04:05.8]} 34. Kxf2 {[%clk 0:08:49.8]}
34... Ne4+ {[%clk 0:04:03.1]} 35. Kf1 {[%clk 0:08:37.2]} 35... Qa1+ {[%clk
0:03:04.8]} 36. Kg2 {[%clk 0:08:29]} 36... Qb2+ {[%clk 0:03:00.2]} 37. Kf3
{[%clk 0:08:12.1]} 37... Qf2# {[%clk 0:02:56.7]} 0-1

[Event "Rapid della Domenica"]
[Site "Chess.com"]
[Date "2020.04.19"]
[Round "5"]
[White "OMatteoWuO"]
[Black "ferrariand"]
[Result "1-0"]
[WhiteElo "1211"]
[BlackElo "1544"]
[TimeControl "720+3"]
[EndTime "8:04:57 PDT"]
[Termination "OMatteoWuO ha vinto per abbandono"]

1. d4 {[%clk 0:11:58.1]} 1... d5 {[%clk 0:12:00.5]} 2. c4 {[%clk 0:11:59.5]}
2... e6 {[%clk 0:11:58.6]} 3. Nc3 {[%clk 0:11:59.9]} 3... Nf6 {[%clk 0:11:59.2]}
4. Nf3 {[%clk 0:12:00.6]} 4... Be7 {[%clk 0:11:57.7]} 5. e3 {[%clk 0:11:34.2]}
5... O-O {[%clk 0:11:58]} 6. Be2 {[%clk 0:11:32.3]} 6... dxc4 {[%clk 0:11:58.1]}
7. Bxc4 {[%clk 0:11:33]} 7... c5 {[%clk 0:11:53.1]} 8. O-O {[%clk 0:11:27.2]}
8... Nc6 {[%clk 0:11:45.8]} 9. b3 {[%clk 0:10:36.2]} 9... cxd4 {[%clk
0:11:45.6]} 10. exd4 {[%clk 0:10:34.4]} 10... Bb4 {[%clk 0:11:25.6]} 11. Bb2
{[%clk 0:10:27.9]} 11... Re8 {[%clk 0:11:05.7]} 12. a3 {[%clk 0:10:09.4]} 12...
Bf8 {[%clk 0:11:01]} 13. Ne2 {[%clk 0:09:37.1]} 13... Qb6 {[%clk 0:10:56.1]} 14.
Qc2 {[%clk 0:08:57.3]} 14... Na5 {[%clk 0:10:53.3]} 15. Rab1 {[%clk 0:08:25.1]}
15... Qc6 {[%clk 0:10:26]} 16. a4 {[%clk 0:07:49.8]} 16... Nxc4 {[%clk
0:10:02.6]} 17. Qxc4 {[%clk 0:07:47.9]} 17... Qxc4 {[%clk 0:10:01]} 18. bxc4
{[%clk 0:07:46.1]} 18... b6 {[%clk 0:10:01.5]} 19. Ng3 {[%clk 0:06:53.4]} 19...
Ba6 {[%clk 0:09:59.7]} 20. Nd2 {[%clk 0:06:28.7]} 20... Rac8 {[%clk 0:09:47.2]}
21. Rbc1 {[%clk 0:05:57]} 21... Bd6 {[%clk 0:09:42.4]} 22. Nge4 {[%clk
0:04:36.9]} 22... Bf4 {[%clk 0:09:30.4]} 23. Nxf6+ {[%clk 0:04:25]} 23... gxf6
{[%clk 0:09:31.3]} 24. Rfd1 {[%clk 0:03:53.7]} 24... Bxd2 {[%clk 0:09:21.8]} 25.
Rxd2 {[%clk 0:03:55.1]} 25... Bxc4 {[%clk 0:09:21.8]} 26. Rdc2 {[%clk
0:03:56.9]} 26... Ba6 {[%clk 0:09:17.6]} 27. Rxc8 {[%clk 0:03:50]} 27... Rxc8
{[%clk 0:09:18.5]} 28. Rxc8+ {[%clk 0:03:51.1]} 28... Bxc8 {[%clk 0:09:19.4]}
29. f4 {[%clk 0:03:51.9]} 29... f5 {[%clk 0:09:16.6]} 30. Kf2 {[%clk 0:03:51.6]}
30... Kf8 {[%clk 0:09:14.7]} 31. h3 {[%clk 0:03:51.8]} 31... Ke8 {[%clk
0:09:15.2]} 32. g4 {[%clk 0:03:43.5]} 32... fxg4 {[%clk 0:09:12.4]} 33. hxg4
{[%clk 0:03:43.4]} 33... Kd7 {[%clk 0:09:11.9]} 34. Ke3 {[%clk 0:03:41.4]} 34...
Bb7 {[%clk 0:09:12.9]} 35. Ba3 {[%clk 0:03:40.1]} 35... Bc6 {[%clk 0:09:12.7]}
36. a5 {[%clk 0:03:38.2]} 36... bxa5 {[%clk 0:09:13.8]} 37. Kd3 {[%clk
0:03:35.4]} 37... Bd5 {[%clk 0:09:13.7]} 38. g5 {[%clk 0:03:34.3]} 38... Kc6
{[%clk 0:09:14.1]} 39. Bc5 {[%clk 0:03:29.6]} 39... a6 {[%clk 0:09:10.8]} 40.
Kc2 {[%clk 0:03:29.4]} 40... Kb5 {[%clk 0:09:11.9]} 41. Kc3 {[%clk 0:03:31.1]}
41... a4 {[%clk 0:09:09.7]} 42. Ba3 {[%clk 0:03:28.4]} 42... a5 {[%clk
0:08:53.8]} 43. Bc5 {[%clk 0:03:15.3]} 43... Kc6 {[%clk 0:08:51.7]} 44. Ba3
{[%clk 0:02:52.6]} 44... Kd7 {[%clk 0:08:52]} 45. Bc5 {[%clk 0:02:50.8]} 45...
f6 {[%clk 0:08:50]} 46. gxf6 {[%clk 0:02:50.8]} 46... h5 {[%clk 0:08:51]} 47. f7
{[%clk 0:02:46.9]} 1-0

[Event "Rapid della Domenica"]
[Site "Chess.com"]
[Date "2020.04.19"]
[Round "5"]
[White "BAKR1980"]
[Black "SanSecondoPR"]
[Result "1-0"]
[WhiteElo "1518"]
[BlackElo "1172"]
[TimeControl "720+3"]
[EndTime "8:06:43 PDT"]
[Termination "BAKR1980 ha vinto per abbandono"]

1. e4 {[%clk 0:12:02.9]} 1... e5 {[%clk 0:12:00.8]} 2. Nf3 {[%clk 0:11:47.7]}
2... Nf6 {[%clk 0:12:00.2]} 3. Bc4 {[%clk 0:11:44.8]} 3... Bd6 {[%clk
0:11:54.2]} 4. d4 {[%clk 0:11:25.5]} 4... Qe7 {[%clk 0:10:53.9]} 5. O-O {[%clk
0:11:22.6]} 5... Nc6 {[%clk 0:10:47.6]} 6. c3 {[%clk 0:11:19.7]} 6... O-O {[%clk
0:10:45.7]} 7. Bg5 {[%clk 0:11:16.1]} 7... Na5 {[%clk 0:10:37.5]} 8. Bd3 {[%clk
0:11:16.2]} 8... h6 {[%clk 0:10:28.6]} 9. Bh4 {[%clk 0:11:05]} 9... g5 {[%clk
0:10:25.4]} 10. Bg3 {[%clk 0:10:11.6]} 10... Nh5 {[%clk 0:10:22.2]} 11. dxe5
{[%clk 0:10:03.2]} 11... Nxg3 {[%clk 0:10:19.2]} 12. exd6 {[%clk 0:10:03.9]}
12... Qxd6 {[%clk 0:10:13.2]} 13. hxg3 {[%clk 0:09:58.6]} 13... Qf6 {[%clk
0:09:50.6]} 14. e5 {[%clk 0:09:43.7]} 14... Qg7 {[%clk 0:09:48.3]} 15. Bf5
{[%clk 0:09:31.7]} 15... d6 {[%clk 0:09:31.2]} 16. Bxc8 {[%clk 0:09:28.6]} 16...
Raxc8 {[%clk 0:09:27.1]} 17. exd6 {[%clk 0:09:30.2]} 17... cxd6 {[%clk
0:09:18.6]} 18. Na3 {[%clk 0:09:29.5]} 18... Nc6 {[%clk 0:09:05.3]} 19. Nd4
{[%clk 0:09:19.1]} 19... Ne5 {[%clk 0:08:58.1]} 20. Qh5 {[%clk 0:09:16.4]} 20...
Qf6 {[%clk 0:08:28.9]} 21. g4 {[%clk 0:08:27]} 21... Kh7 {[%clk 0:07:14.4]} 22.
Nf5 {[%clk 0:08:22.9]} 22... Rg8 {[%clk 0:06:40.6]} 23. Rad1 {[%clk 0:08:18.7]}
23... Rc6 {[%clk 0:06:07.7]} 24. Nb5 {[%clk 0:08:15.3]} 24... Qg6 {[%clk
0:05:58.4]} 25. Qh3 {[%clk 0:08:03.5]} 25... Re8 {[%clk 0:05:18.5]} 26. Nbxd6
{[%clk 0:07:43.4]} 26... Re6 {[%clk 0:05:08.6]} 27. Nxb7 {[%clk 0:07:31.6]}
27... Rc4 {[%clk 0:04:44.2]} 28. Rd4 {[%clk 0:07:01.1]} 28... Rec6 {[%clk
0:04:20]} 29. Rfd1 {[%clk 0:06:48]} 29... Rxd4 {[%clk 0:04:05.9]} 30. Rxd4
{[%clk 0:06:36.7]} 30... Nc4 {[%clk 0:03:49.5]} 31. Nd8 {[%clk 0:06:19.6]} 31...
Rc8 {[%clk 0:03:16.3]} 32. Qd3 {[%clk 0:06:09.3]} 32... Ne5 {[%clk 0:03:08.6]}
33. Qe4 {[%clk 0:06:06.2]} 33... Nc6 {[%clk 0:02:38.7]} 34. Rd6 {[%clk
0:05:48.7]} 34... Ne7 {[%clk 0:02:31.6]} 35. Rxg6 {[%clk 0:05:45.8]} 1-0

[Event "Rapid della Domenica"]
[Site "Chess.com"]
[Date "2020.04.19"]
[Round "5"]
[White "sergiodone"]
[Black "pedrak"]
[Result "0-1"]
[WhiteElo "1363"]
[BlackElo "1647"]
[TimeControl "720+3"]
[EndTime "8:10:08 PDT"]
[Termination "pedrak ha vinto per tempo"]

1. e4 {[%clk 0:11:49.1]} 1... d5 {[%clk 0:12:00.4]} 2. exd5 {[%clk 0:11:40.5]}
2... Qxd5 {[%clk 0:12:01.3]} 3. c4 {[%clk 0:11:41.1]} 3... Qd8 {[%clk
0:11:54.1]} 4. d4 {[%clk 0:11:41.6]} 4... Nf6 {[%clk 0:11:54]} 5. Nc3 {[%clk
0:11:41.7]} 5... e6 {[%clk 0:11:54.7]} 6. h3 {[%clk 0:11:43.3]} 6... Be7 {[%clk
0:11:53.6]} 7. Nf3 {[%clk 0:11:40.2]} 7... O-O {[%clk 0:11:54.7]} 8. Bd3 {[%clk
0:11:40.3]} 8... b6 {[%clk 0:11:55.1]} 9. O-O {[%clk 0:11:40.3]} 9... Bb7 {[%clk
0:11:56.3]} 10. Qe2 {[%clk 0:11:41.3]} 10... Nbd7 {[%clk 0:11:48.8]} 11. Bg5
{[%clk 0:11:34.3]} 11... Re8 {[%clk 0:11:46.1]} 12. Rad1 {[%clk 0:11:30.8]}
12... Nf8 {[%clk 0:11:46.4]} 13. Bxf6 {[%clk 0:11:03.2]} 13... Bxf6 {[%clk
0:11:44.5]} 14. Be4 {[%clk 0:11:04.7]} 14... Bxe4 {[%clk 0:11:44]} 15. Qxe4
{[%clk 0:11:04.9]} 15... Ng6 {[%clk 0:11:38.3]} 16. g3 {[%clk 0:10:45.1]} 16...
Qe7 {[%clk 0:11:24.3]} 17. Rfe1 {[%clk 0:10:45.6]} 17... Rad8 {[%clk 0:11:20.7]}
18. a3 {[%clk 0:10:34.8]} 18... Rd7 {[%clk 0:10:59.6]} 19. h4 {[%clk 0:09:57.6]}
19... h6 {[%clk 0:10:37.6]} 20. h5 {[%clk 0:09:54.8]} 20... Nf8 {[%clk
0:10:38.1]} 21. b4 {[%clk 0:09:30.2]} 21... Qd8 {[%clk 0:10:19.3]} 22. Ne2
{[%clk 0:09:18.8]} 22... c5 {[%clk 0:09:59.4]} 23. bxc5 {[%clk 0:09:13.6]} 23...
bxc5 {[%clk 0:10:00.6]} 24. Qc6 {[%clk 0:09:02.9]} 24... cxd4 {[%clk 0:09:49]}
25. Nexd4 {[%clk 0:08:22.3]} 25... e5 {[%clk 0:08:42.7]} 26. Qe4 {[%clk
0:05:02.6]} 26... Qc7 {[%clk 0:05:35.3]} 27. Nc6 {[%clk 0:04:58.6]} 27... Rxd1
{[%clk 0:05:35.3]} 28. Rxd1 {[%clk 0:04:58.6]} 28... Rc8 {[%clk 0:05:36.2]} 29.
Ncxe5 {[%clk 0:03:53.8]} 29... Bxe5 {[%clk 0:05:33.2]} 30. Nxe5 {[%clk
0:03:53.5]} 30... Re8 {[%clk 0:05:34.4]} 31. Rd5 {[%clk 0:03:28.2]} 31... Nd7
{[%clk 0:05:27.9]} 32. f4 {[%clk 0:02:54.4]} 32... Nf6 {[%clk 0:05:27.8]} 33.
Qd3 {[%clk 0:01:34.9]} 33... Nxd5 {[%clk 0:05:22.4]} 34. cxd5 {[%clk 0:01:35.3]}
34... Qc5+ {[%clk 0:05:19.5]} 35. Kg2 {[%clk 0:01:30.5]} 35... Rd8 {[%clk
0:05:20.1]} 36. Qf5 {[%clk 0:01:00.7]} 36... Qxd5+ {[%clk 0:05:18.3]} 37. Kh3
{[%clk 0:00:58.3]} 37... Qe6 {[%clk 0:05:16.5]} 38. Qxe6 {[%clk 0:00:40.8]}
38... fxe6 {[%clk 0:05:17.8]} 39. Kg4 {[%clk 0:00:22]} 39... Rd6 {[%clk
0:05:11.1]} 40. Kf3 {[%clk 0:00:17.1]} 40... Ra6 {[%clk 0:05:11.2]} 0-1

[Event "Rapid della Domenica"]
[Site "Chess.com"]
[Date "2020.04.19"]
[Round "5"]
[White "MartinoMontepietra"]
[Black "moha1812med"]
[Result "0-1"]
[WhiteElo "696"]
[BlackElo "1057"]
[TimeControl "720+3"]
[EndTime "8:13:30 PDT"]
[Termination "moha1812med ha vinto per scaccomatto"]

1. g3 {[%clk 0:11:57.7]} 1... e5 {[%clk 0:11:43.8]} 2. Nf3 {[%clk 0:11:52.2]}
2... Nc6 {[%clk 0:11:40.5]} 3. Bg2 {[%clk 0:11:48.1]} 3... Nf6 {[%clk
0:11:38.5]} 4. O-O {[%clk 0:11:46.9]} 4... Bc5 {[%clk 0:11:36]} 5. e3 {[%clk
0:11:37.2]} 5... O-O {[%clk 0:11:22]} 6. d4 {[%clk 0:11:32.7]} 6... exd4 {[%clk
0:10:46.6]} 7. exd4 {[%clk 0:11:31.5]} 7... Bb6 {[%clk 0:10:41.9]} 8. Nc3 {[%clk
0:11:18.4]} 8... d5 {[%clk 0:10:39.8]} 9. a3 {[%clk 0:10:59.9]} 9... Bg4 {[%clk
0:10:23.2]} 10. h3 {[%clk 0:10:38.9]} 10... Bxf3 {[%clk 0:10:13.5]} 11. Bxf3
{[%clk 0:10:35.2]} 11... h6 {[%clk 0:09:38]} 12. g4 {[%clk 0:10:28.4]} 12...
Bxd4 {[%clk 0:09:16.4]} 13. Nb5 {[%clk 0:10:00.1]} 13... Bb6 {[%clk 0:08:36.3]}
14. b3 {[%clk 0:09:39.6]} 14... a6 {[%clk 0:08:11.7]} 15. Nc3 {[%clk 0:09:21.7]}
15... Bd4 {[%clk 0:07:46.6]} 16. Bb2 {[%clk 0:09:03.4]} 16... b5 {[%clk
0:06:45.4]} 17. Re1 {[%clk 0:08:01.5]} 17... a5 {[%clk 0:06:25.5]} 18. a4 {[%clk
0:07:41.5]} 18... b4 {[%clk 0:06:24.7]} 19. Nb5 {[%clk 0:06:46.5]} 19... Bxb2
{[%clk 0:06:14.6]} 20. Rb1 {[%clk 0:06:44.3]} 20... Be5 {[%clk 0:06:14.1]} 21.
Qc1 {[%clk 0:05:46.2]} 21... Nd7 {[%clk 0:04:37.9]} 22. c3 {[%clk 0:05:15.6]}
22... bxc3 {[%clk 0:04:28.6]} 23. Bxd5 {[%clk 0:04:38.9]} 23... Nd4 {[%clk
0:03:43.8]} 24. Qd1 {[%clk 0:04:19.1]} 24... c2 {[%clk 0:03:34.6]} 25. Qd3
{[%clk 0:04:04.7]} 25... cxb1=Q {[%clk 0:03:25.9]} 26. Rxb1 {[%clk 0:03:59.4]}
26... Nc5 {[%clk 0:02:58.6]} 27. Qc4 {[%clk 0:03:32.6]} 27... c6 {[%clk
0:02:40.6]} 28. Qxc5 {[%clk 0:03:04.6]} 28... cxb5 {[%clk 0:02:32.4]} 29. axb5
{[%clk 0:02:50]} 29... Qf6 {[%clk 0:02:32.2]} 30. Bxa8 {[%clk 0:01:55.6]} 30...
Rxa8 {[%clk 0:02:21.5]} 31. b6 {[%clk 0:01:38.4]} 31... Bh2+ {[%clk 0:01:30]}
32. Kxh2 {[%clk 0:01:31.6]} 32... Qf4+ {[%clk 0:01:22.1]} 33. Kg1 {[%clk
0:01:28.3]} 33... Ne2+ {[%clk 0:00:52.4]} 34. Kf1 {[%clk 0:01:23.9]} 34... Ng3+
{[%clk 0:00:43.9]} 35. Kg1 {[%clk 0:01:13.1]} 35... Qe4 {[%clk 0:00:38.9]} 36.
b7 {[%clk 0:01:04.3]} 36... Qh1# {[%clk 0:00:35.2]} 0-1

[Event "Rapid della Domenica"]
[Site "Chess.com"]
[Date "2020.04.19"]
[Round "6"]
[White "Ollarov"]
[Black "pedrak"]
[Result "0-1"]
[WhiteElo "1971"]
[BlackElo "1734"]
[TimeControl "720+3"]
[EndTime "8:20:54 PDT"]
[Termination "pedrak ha vinto per abbandono"]

1. e4 {[%clk 0:12:01.8]} 1... d5 {[%clk 0:12:00.3]} 2. exd5 {[%clk 0:12:03.2]}
2... Qxd5 {[%clk 0:12:01.6]} 3. Nc3 {[%clk 0:12:01.9]} 3... Qd6 {[%clk
0:12:02.7]} 4. d4 {[%clk 0:12:01.3]} 4... Nf6 {[%clk 0:12:03.8]} 5. Nf3 {[%clk
0:12:03]} 5... Bg4 {[%clk 0:12:04.2]} 6. Be2 {[%clk 0:12:03.3]} 6... c6 {[%clk
0:12:05.6]} 7. Be3 {[%clk 0:10:55.5]} 7... e6 {[%clk 0:12:03]} 8. Qd2 {[%clk
0:10:56.1]} 8... Nbd7 {[%clk 0:11:59.3]} 9. h3 {[%clk 0:10:58.2]} 9... Bxf3
{[%clk 0:12:00.5]} 10. Bxf3 {[%clk 0:11:00]} 10... Qc7 {[%clk 0:12:01.5]} 11.
Ne4 {[%clk 0:10:54.7]} 11... Nxe4 {[%clk 0:12:00.4]} 12. Bxe4 {[%clk 0:10:56.4]}
12... Nf6 {[%clk 0:12:01.7]} 13. Bf3 {[%clk 0:10:55.4]} 13... Be7 {[%clk
0:11:55.1]} 14. Bf4 {[%clk 0:10:48.8]} 14... Bd6 {[%clk 0:11:52.8]} 15. Bg5
{[%clk 0:10:50.8]} 15... Be7 {[%clk 0:11:53.6]} 16. Bf4 {[%clk 0:10:52.7]} 16...
Qb6 {[%clk 0:11:54.3]} 17. O-O-O {[%clk 0:10:44.6]} 17... Nd5 {[%clk 0:11:14.7]}
18. Bxd5 {[%clk 0:10:40.5]} 18... cxd5 {[%clk 0:11:15.3]} 19. Be5 {[%clk
0:10:41.3]} 19... f6 {[%clk 0:10:41.3]} 20. Bg3 {[%clk 0:10:36.5]} 20... Kf7
{[%clk 0:10:41.6]} 21. Qe2 {[%clk 0:10:36.1]} 21... Rac8 {[%clk 0:10:42.2]} 22.
Rd3 {[%clk 0:10:32]} 22... Rc6 {[%clk 0:10:42.8]} 23. Rhd1 {[%clk 0:10:33]}
23... Rhc8 {[%clk 0:10:43.3]} 24. R1d2 {[%clk 0:10:31.6]} 24... Qa6 {[%clk
0:10:38.3]} 25. Qh5+ {[%clk 0:10:30.7]} 25... Kg8 {[%clk 0:10:38.3]} 26. Ra3
{[%clk 0:10:06.2]} 26... Bxa3 {[%clk 0:10:19.6]} 27. bxa3 {[%clk 0:10:05.4]}
27... Qxa3+ {[%clk 0:10:19.9]} 28. Kb1 {[%clk 0:10:00.8]} 28... Rb6+ {[%clk
0:10:20.2]} 0-1

[Event "Rapid della Domenica"]
[Site "Chess.com"]
[Date "2020.04.19"]
[Round "6"]
[White "crippo"]
[Black "Piccolorso"]
[Result "1-0"]
[WhiteElo "1544"]
[BlackElo "1240"]
[TimeControl "720+3"]
[EndTime "8:23:13 PDT"]
[Termination "crippo ha vinto per abbandono"]

1. e4 {[%clk 0:12:02.9]} 1... c5 {[%clk 0:12:00.6]} 2. Nf3 {[%clk 0:12:03.5]}
2... Nc6 {[%clk 0:11:58.7]} 3. Nc3 {[%clk 0:12:05.5]} 3... d6 {[%clk 0:11:42.2]}
4. a4 {[%clk 0:12:04.6]} 4... Nf6 {[%clk 0:11:25.6]} 5. Bb5 {[%clk 0:12:04.2]}
5... Qc7 {[%clk 0:11:04.1]} 6. Nd5 {[%clk 0:11:52.4]} 6... Qd8 {[%clk
0:10:33.9]} 7. O-O {[%clk 0:11:52.2]} 7... Bd7 {[%clk 0:10:35.5]} 8. Nxf6+
{[%clk 0:11:45.7]} 8... exf6 {[%clk 0:10:34]} 9. d3 {[%clk 0:11:44.6]} 9... Be7
{[%clk 0:10:25.6]} 10. Bf4 {[%clk 0:11:41]} 10... a6 {[%clk 0:10:24.4]} 11. Bc4
{[%clk 0:11:40.7]} 11... Ne5 {[%clk 0:10:21.8]} 12. Bg3 {[%clk 0:11:37.4]} 12...
O-O {[%clk 0:10:21.3]} 13. Nxe5 {[%clk 0:11:38.5]} 13... fxe5 {[%clk 0:10:17.3]}
14. Qh5 {[%clk 0:11:41]} 14... b5 {[%clk 0:09:35.5]} 15. axb5 {[%clk 0:11:40.9]}
15... axb5 {[%clk 0:08:56.7]} 16. Bd5 {[%clk 0:11:40.3]} 16... Rc8 {[%clk
0:08:15]} 17. f4 {[%clk 0:11:38.8]} 17... Bf6 {[%clk 0:07:46.5]} 18. fxe5 {[%clk
0:11:38.8]} 18... g6 {[%clk 0:07:17.1]} 19. Qf3 {[%clk 0:11:25.2]} 19... dxe5
{[%clk 0:06:56]} 20. Qxf6 {[%clk 0:11:23.6]} 20... Qxf6 {[%clk 0:06:47.7]} 21.
Rxf6 {[%clk 0:11:24]} 21... c4 {[%clk 0:06:26.8]} 22. d4 {[%clk 0:11:15.9]}
22... exd4 {[%clk 0:06:22.4]} 23. Be5 {[%clk 0:11:15.9]} 23... Kg7 {[%clk
0:06:14.9]} 24. Bxd4 {[%clk 0:11:13.4]} 24... Be6 {[%clk 0:06:09]} 25. Rxe6+
{[%clk 0:11:13.9]} 1-0

[Event "Rapid della Domenica"]
[Site "Chess.com"]
[Date "2020.04.19"]
[Round "6"]
[White "ottovolante"]
[Black "fausto2p"]
[Result "0-1"]
[WhiteElo "999"]
[BlackElo "972"]
[TimeControl "720+3"]
[EndTime "8:25:09 PDT"]
[Termination "fausto2p ha vinto per scaccomatto"]

1. e4 {[%clk 0:12:00.1]} 1... e6 {[%clk 0:12:00.1]} 2. d4 {[%clk 0:12:00.7]}
2... d5 {[%clk 0:12:01.4]} 3. e5 {[%clk 0:12:02.4]} 3... c5 {[%clk 0:11:59.8]}
4. Nf3 {[%clk 0:11:59.7]} 4... Nc6 {[%clk 0:12:01]} 5. a3 {[%clk 0:11:53.7]}
5... a5 {[%clk 0:11:10.8]} 6. Be3 {[%clk 0:11:46.2]} 6... Qb6 {[%clk 0:11:05.1]}
7. Qc1 {[%clk 0:11:37.9]} 7... Nh6 {[%clk 0:10:21]} 8. Nc3 {[%clk 0:11:27.1]}
8... Nf5 {[%clk 0:10:14.9]} 9. Na4 {[%clk 0:11:27.6]} 9... Qa7 {[%clk
0:09:52.8]} 10. Bb5 {[%clk 0:11:01]} 10... Bd7 {[%clk 0:09:47.4]} 11. Bxc6
{[%clk 0:10:44.7]} 11... Bxc6 {[%clk 0:09:46.8]} 12. Nc3 {[%clk 0:10:32.7]}
12... cxd4 {[%clk 0:09:44.9]} 13. Nxd4 {[%clk 0:10:29.7]} 13... Nxd4 {[%clk
0:09:41.2]} 14. Bxd4 {[%clk 0:10:31.1]} 14... Qxd4 {[%clk 0:09:40.9]} 15. O-O
{[%clk 0:10:27.5]} 15... Qxe5 {[%clk 0:09:28.4]} 16. Re1 {[%clk 0:10:09.5]}
16... Qd6 {[%clk 0:09:25.7]} 17. Ne2 {[%clk 0:09:55.6]} 17... Be7 {[%clk
0:09:19.4]} 18. Ng3 {[%clk 0:09:56.9]} 18... O-O {[%clk 0:09:10]} 19. c3 {[%clk
0:09:58.4]} 19... Bf6 {[%clk 0:08:52.2]} 20. Qc2 {[%clk 0:09:59.6]} 20... b5
{[%clk 0:08:19.2]} 21. Nh5 {[%clk 0:10:00.5]} 21... Qd8 {[%clk 0:08:07.5]} 22.
Re3 {[%clk 0:09:48]} 22... g6 {[%clk 0:08:04.3]} 23. Nxf6+ {[%clk 0:09:43]}
23... Qxf6 {[%clk 0:08:04.9]} 24. Rf3 {[%clk 0:09:43.9]} 24... Qe7 {[%clk
0:07:58.3]} 25. Re1 {[%clk 0:09:37.2]} 25... d4 {[%clk 0:07:30.5]} 26. Rg3
{[%clk 0:09:37.2]} 26... dxc3 {[%clk 0:07:24.7]} 27. bxc3 {[%clk 0:09:37.9]}
27... Bd5 {[%clk 0:07:17.7]} 28. Qd2 {[%clk 0:09:37.9]} 28... Bc4 {[%clk
0:07:14.7]} 29. Qh6 {[%clk 0:09:34.4]} 29... Qf6 {[%clk 0:07:10.2]} 30. Ree3
{[%clk 0:09:31.6]} 30... Rad8 {[%clk 0:06:48]} 31. Rh3 {[%clk 0:09:32.2]} 31...
Rd1+ {[%clk 0:06:43.3]} 32. Re1 {[%clk 0:09:23.7]} 32... Rxe1# {[%clk
0:06:44.8]} 0-1